bitfinex-derivatives/quotes_ETHF0:USTF0_20260308
["timestamp","ask_amount","ask_price","bid_price","bid_amount"]
[1772980968515,6.78659338,1939.0,1938.3,7.28217306]
[1772980969313,6.79022444,1939.0,1938.3,7.28217306]
[1772980969514,0.00363106,1939.0,1938.3,7.28217306]
[1772980969713,6.79022444,1939.0,1938.3,7.28217306]
[1772980969917,6.79022444,1939.0,1938.4,15.526]
[1772980970118,6.79022444,1939.0,1938.4,22.80817306]
[1772980970720,6.79022444,1939.0,1938.5,7.28217306]
[1772980971716,5.87852877,1939.0,1938.5,7.28217306]
[1772980972020,6.78659338,1939.6,1938.5,7.28217306]
[1772980972222,6.78659338,1939.6,1938.3,7.28217306]
[1772980972420,6.78659338,1939.4,1938.5,7.28217306]
[1772980972821,6.78659338,1939.2,1938.5,7.28217306]
[1772980975816,6.78659338,1939.0,1938.1,15.55796919]
[1772980976220,6.78659338,1938.8,1938.1,22.84014225]
[1772980976526,5.46618196,1938.7,1938.1,22.84014225]
[1772980976824,6.78659338,1938.6,1938.1,22.84014225]
[1772980977324,6.78659338,1938.6,1938.1,15.55796919]
[1772980977826,6.78659338,1938.6,1938.1,22.84014225]
[1772980978024,6.78659338,1938.6,1938.1,15.55796919]
[1772980978227,6.78659338,1938.4,1938.1,15.55796919]
[1772980978620,6.78659338,1938.4,1938.1,22.84014225]
[1772980978820,6.78659338,1938.9,1938.1,22.84014225]
[1772980979119,6.78659338,1938.7,1938.1,22.84014225]
[1772980979322,6.78659338,1938.7,1938.1,15.55796919]
[1772980979522,12.47634207,1938.6,1938.2,7.28217306]
[1772980979725,6.78659338,1938.5,1938.2,7.28217306]
[1772980980628,6.78659338,1939.1,1938.2,7.28217306]
[1772980981024,6.78659338,1939.0,1938.2,7.28217306]
[1772980981530,6.78659338,1938.8,1938.2,7.28217306]
[1772980981823,6.78659338,1938.6,1938.1,15.55796919]
[1772980982028,6.78659338,1938.6,1938.1,22.84014225]
[1772980982327,6.78659338,1938.6,1938.2,7.28217306]
[1772980982629,6.78659338,1939.1,1938.2,7.28217306]
[1772980983029,7.34365757,1939.0,1938.2,7.28217306]
[1772980983530,7.34365757,1938.8,1938.2,7.28217306]
[1772980983832,5.60037558,1938.7,1938.2,7.28217306]
[1772980984020,12.94403315,1938.7,1938.2,7.28217306]
[1772980984330,7.29218837,1938.6,1938.2,7.28217306]
[1772980986127,6.744,1939.2,1938.2,7.28217306]
[1772980986329,7.29218837,1939.1,1938.2,7.28217306]
[1772980986527,7.29218837,1939.0,1938.2,7.28217306]
[1772980986831,7.29218837,1938.8,1938.2,7.28217306]
[1772980987325,7.29218837,1938.6,1938.1,23.35581429]
[1772980987529,7.29218837,1938.6,1938.1,15.58096919]
[1772980988430,5.64568803,1938.5,1937.8,7.7748451]
[1772980988630,7.29218837,1938.4,1937.8,7.7748451]
[1772980989529,7.29218837,1938.4,1937.8,7.78041249]
[1772980990433,7.29218837,1938.2,1937.8,0.00556739]
[1772980990629,7.29218837,1938.2,1937.7,15.576]
[1772980990825,7.29218837,1938.0,1937.7,15.576]
[1772980991233,13.07207781,1937.9,1937.7,15.576]
[1772980991432,7.29218837,1937.8,1937.7,15.576]
[1772980991827,7.29218837,1938.7,1937.7,15.58190773]
[1772980992033,7.29218837,1938.3,1937.7,23.35675283]
[1772980992537,7.29218837,1938.1,1937.8,7.7748451]
[1772980993131,7.29615795,1938.1,1937.8,7.7748451]
[1772980993332,7.29615795,1938.1,1937.7,23.35675283]
[1772980994239,7.29615795,1938.1,1937.7,15.60190773]
[1772980994836,7.29218837,1937.9,1937.4,23.3728451]
[1772980995232,7.29218837,1937.7,1937.4,15.598]
[1772980995734,7.29218837,1937.7,1937.4,15.6039221]
[1772980996835,7.29218837,1937.7,1937.4,15.51049655]
[1772980997739,7.29218837,1937.7,1936.6,7.7748451]
[1772980997933,7.29218837,1937.5,1936.9,7.7748451]
[1772980998238,7.29218837,1937.3,1936.8,15.616]
[1772980998637,7.29218837,1937.3,1936.8,15.62122516]
[1772980999241,7.29218837,1937.1,1936.8,15.62122516]
[1772980999441,7.29218837,1937.1,1936.6,7.7748451]
[1772980999631,13.11232629,1937.0,1936.6,7.7748451]
[1772980999944,7.29218837,1937.0,1936.6,7.7748451]
[1772981000243,6.746,1937.6,1936.6,7.7748451]
[1772981000244,13.14820512,1936.9,1936.6,7.7748451]
[1772981000542,7.29218837,1936.9,1936.6,7.78055187]
[1772981000843,7.29218837,1937.0,1936.6,7.78055187]
[1772981001238,12.70098788,1936.9,1936.6,23.41055187]
[1772981001635,0.26196958,1938.1,1936.7,7.7748451]
[1772981001636,7.29218837,1937.4,1936.7,7.7748451]
[1772981001839,7.29218837,1937.4,1936.7,15.633]
[1772981002043,7.29218837,1937.2,1936.8,7.7748451]
[1772981003537,7.29218837,1938.0,1936.8,7.7748451]
[1772981003843,7.29218837,1937.9,1936.8,7.7748451]
[1772981004240,7.29218837,1937.7,1936.8,7.7748451]
[1772981004439,5.92486184,1937.8,1936.8,7.7748451]
[1772981004642,13.21705021,1937.9,1936.8,7.7748451]
[1772981004841,7.29218837,1937.9,1936.8,7.7748451]
[1772981005339,7.29218837,1937.7,1936.8,7.7748451]
[1772981005750,7.29218837,1937.5,1936.8,7.7748451]
[1772981006242,7.29218837,1937.3,1936.7,15.65]
[1772981006641,7.29218837,1937.1,1936.7,15.65]
[1772981007148,7.29218837,1937.1,1936.7,23.4248451]
[1772981007348,7.29218837,1936.9,1936.4,7.7748451]
[1772981008048,5.83502926,1936.8,1936.5,7.7748451]
[1772981008446,7.29218837,1937.0,1936.5,0.00488616]
[1772981008947,13.22652269,1936.9,1936.5,7.77973126]
[1772981009345,7.29218837,1936.9,1936.5,7.77973126]
[1772981009645,7.29218837,1937.2,1936.5,7.77973126]
[1772981010039,7.29218837,1937.1,1936.5,0.00488616]
[1772981010245,7.29218837,1937.1,1936.5,15.63688616]
[1772981010444,7.29218837,1936.9,1936.5,15.63688616]
[1772981011052,7.29218837,1936.9,1936.5,23.41173126]
[1772981011651,7.29218837,1936.9,1936.6,7.7748451]
[1772981011847,7.29218837,1937.2,1936.6,7.7748451]
[1772981012348,7.29218837,1937.1,1936.6,7.7748451]
[1772981012854,7.62859885,1936.9,1936.5,7.73666907]
[1772981013150,7.62859885,1936.9,1936.5,23.38466907]
[1772981014148,7.62859885,1936.9,1936.5,0.00488616]
[1772981014350,7.62859885,1936.9,1936.5,7.73666907]
[1772981014549,7.62859885,1936.9,1936.5,0.00488616]
[1772981014746,7.62859885,1936.9,1936.5,7.73666907]
[1772981014947,7.62859885,1936.9,1936.5,0.00488616]
[1772981015146,7.62859885,1936.7,1936.4,15.655]
[1772981015342,7.62859885,1936.7,1936.3,15.659]
[1772981015648,7.62859885,1936.7,1936.3,23.39078291]
[1772981016041,7.63526485,1936.7,1936.3,23.39625359]
[1772981016846,7.63526485,1936.7,1936.4,7.73178291]
[1772981019252,7.63526485,1936.7,1936.3,23.39625359]
[1772981019751,7.63526485,1936.7,1936.3,0.00547068]
[1772981019949,5.48097963,1936.6,1936.3,7.73725359]
[1772981020354,7.62859885,1936.5,1936.3,0.00547068]
[1772981020651,0.006666,1936.7,1936.4,7.73178291]
[1772981020844,7.62859885,1936.9,1936.4,7.73178291]
[1772981021043,7.62859885,1937.1,1936.4,7.73178291]
[1772981021242,13.29478621,1937.1,1936.4,7.73178291]
[1772981021444,7.62859885,1937.1,1936.4,7.73178291]
[1772981021648,13.29478621,1937.0,1936.4,7.73178291]
[1772981022050,7.63280911,1937.0,1936.4,7.73668326]
[1772981022848,7.62859885,1937.3,1936.4,7.99489326]
[1772981023053,7.62859885,1938.0,1936.4,7.99489326]
[1772981023356,7.62859885,1937.6,1936.6,7.73178291]
[1772981023753,5.66186786,1937.5,1936.6,7.73178291]
[1772981023954,7.63457377,1937.5,1936.6,7.73178291]
[1772981024255,0.00597492,1937.5,1936.6,7.73178291]
[1772981024849,7.62859885,1938.1,1936.8,7.73178291]
[1772981025053,7.62859885,1938.1,1937.0,7.73178291]
[1772981025256,5.93403045,1938.1,1937.2,7.73178291]
[1772981025858,5.93963326,1938.1,1937.2,7.73178291]
[1772981026058,0.00560281,1938.1,1937.2,7.73178291]
[1772981027460,7.63420166,1938.1,1937.4,7.73178291]
[1772981027758,5.76159169,1938.0,1937.6,7.73178291]
[1772981027957,13.39019054,1938.0,1937.6,23.28278291]
[1772981028158,7.62859885,1937.9,1937.3,23.20278291]
[1772981028352,7.62859885,1937.9,1937.3,23.20578291]
[1772981028860,5.90018568,1937.8,1936.5,7.73178291]
[1772981029063,7.62859885,1937.7,1936.7,7.73178291]
[1772981029462,5.9419951,1937.6,1936.7,7.73178291]
[1772981029662,5.9419951,1937.6,1936.9,7.73178291]
[1772981029864,7.62859885,1937.8,1936.9,7.73178291]
[1772981030356,5.65009991,1937.7,1936.9,7.73178291]
[1772981030763,7.62859885,1937.8,1936.9,7.73178291]
[1772981033366,13.10841214,1937.7,1937.1,7.73178291]
[1772981033566,7.62859885,1937.6,1937.3,7.73178291]
[1772981035266,7.62859885,1937.6,1937.2,23.29678291]
[1772981038366,7.62859885,1937.6,1937.2,15.565]
[1772981038570,7.62859885,1937.6,1937.2,23.29678291]
[1772981039170,7.62859885,1937.6,1937.2,15.565]
[1772981039471,7.62859885,1937.8,1937.3,7.73178291]
[1772981039671,7.62859885,1938.0,1937.3,7.73178291]
[1772981039872,7.62859885,1937.9,1937.3,7.73178291]
[1772981040668,7.63420166,1938.1,1937.3,7.73178291]
[1772981046078,0.00560281,1938.1,1937.3,7.73178291]
[1772981046676,7.76342237,1938.1,1937.3,7.73178291]
[1772981048678,7.76342237,1938.1,1937.4,8.23092733]
[1772981052989,7.75781956,1937.9,1937.4,8.23092733]
[1772981055087,7.75781956,1937.9,1937.0,8.23092733]
[1772981055294,7.75781956,1937.7,1937.1,8.23092733]
[1772981056085,7.75781956,1937.5,1937.0,15.762]
[1772981056586,5.63003844,1937.4,1937.1,8.23092733]
[1772981056787,7.75781956,1937.5,1937.1,8.23092733]
[1772981057895,7.75781956,1937.8,1937.1,8.23092733]
[1772981058289,13.43122879,1937.8,1937.1,8.23092733]
[1772981058492,7.75781956,1937.7,1937.1,8.23092733]
[1772981058988,7.75781956,1937.5,1937.2,24.00792733]
[1772981059294,7.75781956,1937.5,1937.2,24.00892733]
[1772981061094,8.27749604,1938.0,1937.3,7.85560634]
[1772981061488,8.27749604,1937.9,1937.3,7.85560634]
[1772981061889,5.61276768,1937.8,1937.3,7.85560634]
[1772981062092,8.27749604,1937.7,1937.3,7.85560634]
[1772981063592,8.27749604,1937.7,1937.1,7.85560634]
[1772981063896,8.27749604,1937.7,1937.2,23.65460634]
[1772981064092,8.27749604,1937.7,1937.2,23.65560634]
[1772981070004,8.27749604,1937.7,1937.3,7.85560634]
[1772981072201,0.00560281,1938.1,1937.3,7.85560634]
[1772981072202,8.27749604,1938.0,1937.3,7.85560634]
[1772981072605,8.27749604,1937.9,1937.3,7.85560634]
[1772981072804,8.27749604,1937.9,1937.4,15.815]
[1772981073006,7.52799089,1937.7,1937.4,15.815]
[1772981073806,7.52799089,1937.7,1937.4,23.86759589]
[1772981076502,7.52799089,1938.0,1937.5,8.05259589]
[1772981076806,7.52799089,1937.9,1937.5,8.05259589]
[1772981079412,4.29586379,1938.9,1937.9,8.05259589]
[1772981079413,7.52799089,1938.8,1937.9,8.05259589]
[1772981079712,5.53084276,1938.2,1937.9,8.05259589]
[1772981080106,5.51944998,1938.2,1937.9,8.05259589]
[1772981080311,7.52799089,1938.3,1938.0,10.12336526]
[1772981080512,5.31916822,1938.3,1938.0,10.12336526]
[1772981081415,5.32560399,1938.3,1938.0,10.12336526]
[1772981082208,2.07076937,1939.2,1938.2,10.85395227]
[1772981082407,6.749,1939.1,1938.2,10.85395227]
[1772981082710,5.62768189,1938.8,1938.2,10.85395227]
[1772981082916,6.749,1939.1,1938.2,10.85395227]
[1772981083109,5.62768189,1938.7,1938.2,10.85395227]
[1772981083311,6.75474351,1939.1,1938.6,2.07076937]
[1772981083616,5.87661228,1939.0,1938.7,8.79520748]
[1772981083916,6.32249563,1939.0,1938.7,8.79520748]
[1772981084410,5.87661228,1939.0,1938.7,8.79520748]
[1772981084610,0.00574351,1939.1,1938.7,8.79520748]
[1772981085116,1.21104495,1939.3,1938.7,8.79520748]
[1772981085611,5.57693342,1939.3,1938.7,8.79520748]
[1772981086019,1.30537844,1939.4,1938.7,8.79520748]
[1772981086313,5.57693342,1939.3,1938.7,8.79520748]
[1772981087410,0.00545038,1939.4,1938.7,8.79520748]
[1772981088413,4.83124446,1939.4,1938.7,8.79520748]
[1772981097524,0.00545038,1939.4,1938.7,8.79520748]
[1772981099323,3.69480498,1939.4,1938.7,8.79520748]
[1772981101424,0.00545038,1939.4,1938.7,8.79520748]
[1772981101624,3.46131235,1939.4,1938.7,8.79520748]
[1772981107332,0.00545038,1939.4,1938.7,8.79520748]
[1772981108029,2.5013553,1939.4,1938.7,8.79520748]
[1772981112036,2.5013553,1939.4,1938.9,8.51601908]
[1772981114230,2.00044726,1939.2,1938.4,8.51601908]
[1772981114632,1.98640092,1939.0,1938.4,8.51601908]
[1772981114943,1.90628399,1938.8,1938.0,8.51601908]
[1772981115237,7.21161907,1938.7,1938.2,8.51601908]
[1772981115436,5.31390747,1938.7,1938.2,8.51601908]
[1772981115740,1.8977116,1938.7,1938.2,8.51601908]
[1772981116738,1.51045851,1939.2,1938.2,8.51601908]
[1772981117140,1.4317543,1939.1,1938.2,8.51601908]
[1772981117435,5.66919783,1939.0,1938.2,8.51601908]
[1772981117739,1.42478916,1938.9,1938.2,8.51601908]
[1772981118634,0.77978909,1938.7,1938.2,8.51601908]
[1772981120236,0.99746284,1938.5,1938.1,8.51601908]
[1772981120431,0.99746284,1938.5,1938.1,7.72082318]
[1772981120635,7.73425594,1938.4,1938.1,7.72082318]
[1772981120939,1.79265874,1938.4,1938.1,7.72082318]
[1772981121537,1.71080615,1939.1,1938.1,7.72082318]
[1772981121841,1.69104879,1939.0,1938.1,7.72082318]
[1772981122237,1.69104879,1938.8,1938.1,7.72082318]
[1772981122534,5.63868939,1938.7,1938.1,7.72082318]
[1772981122743,1.70329992,1938.6,1938.1,7.72082318]
[1772981123146,7.26716409,1938.5,1938.1,7.72082318]
[1772981123651,1.62261178,1938.6,1938.1,7.72082318]
[1772981123947,5.69574263,1938.5,1938.1,7.72082318]
[1772981124849,7.12982042,1938.5,1938.1,7.72082318]
[1772981125254,1.3605524,1938.4,1938.1,7.72082318]
[1772981125553,1.3605524,1938.4,1938.0,8.51601908]
[1772981127051,1.46215381,1939.1,1938.0,8.51601908]
[1772981127555,1.19916424,1939.0,1938.0,8.51601908]
[1772981127950,1.12786396,1938.8,1938.0,8.51601908]
[1772981128351,6.95432275,1938.7,1938.0,8.51601908]
[1772981128652,1.13317374,1938.6,1938.0,8.51601908]
[1772981128954,1.13317374,1938.6,1937.9,8.52125399]
[1772981128955,1.06248971,1938.5,1937.9,8.52125399]
[1772981129345,1.05740059,1938.3,1937.9,8.52125399]
[1772981129749,5.90620986,1938.2,1937.9,8.52125399]
[1772981131359,5.90620986,1938.2,1937.9,6.84410087]
[1772981132552,8.4582697,1938.2,1937.9,6.84923265]
[1772981132757,3.10519102,1938.1,1937.7,7.09860381]
[1772981132949,3.10519102,1938.1,1937.2,16.01]
[1772981133257,3.06183943,1937.9,1937.3,7.09860381]
[1772981133653,9.0426286,1937.8,1937.3,7.09860381]
[1772981133853,9.04927978,1937.8,1937.3,7.10441787]
[1772981134049,3.06906318,1937.8,1937.3,7.10441787]
[1772981135157,8.66683304,1937.7,1937.3,7.10441787]
[1772981136459,5.68348856,1937.7,1937.3,7.10441787]
[1772981137155,2.81093747,1937.6,1937.3,6.53554966]
[1772981137657,2.81093747,1937.6,1937.2,23.12760381]
[1772981137853,0.00665118,1937.8,1937.3,7.09860381]
[1772981138057,3.40836989,1937.7,1937.3,7.09860381]
[1772981138257,3.40836989,1937.6,1937.3,7.10262077]
[1772981138851,3.40836989,1937.6,1937.0,7.09860381]
[1772981139053,3.36062261,1937.4,1936.9,7.09860381]
[1772981139454,5.52914785,1937.7,1937.1,7.09860381]
[1772981139660,0.00665118,1937.8,1936.8,2.06755628]
[1772981139661,6.346017,1937.8,1937.3,7.09860381]
[1772981139853,6.346017,1937.8,1937.3,7.10449565]
[1772981140457,11.69341826,1937.7,1937.3,7.10449565]
[1772981141061,6.59266494,1937.6,1937.3,7.10449565]
[1772981141262,12.00960426,1937.7,1937.3,7.10449565]
[1772981141560,6.62172731,1937.8,1937.3,7.10449565]
[1772981141961,6.54376257,1937.6,1937.3,0.00589184]
[1772981142366,12.34982613,1937.5,1937.3,0.00589184]
[1772981142566,6.62950327,1937.4,1936.8,7.09860381]
[1772981142964,0.00665118,1937.8,1936.8,7.09860381]
[1772981142965,6.55909165,1937.2,1936.8,7.09860381]
[1772981143166,6.55909165,1937.2,1936.3,7.09860381]
[1772981143363,0.04099524,1937.1,1936.4,7.09860381]
[1772981143766,0.04099524,1937.1,1936.4,7.10242335]
[1772981143965,6.59466731,1937.1,1936.4,7.10242335]
[1772981146769,6.34275156,1937.5,1936.4,7.10242335]
[1772981146972,6.26369256,1937.7,1936.4,7.10242335]
[1772981147173,6.26369256,1937.4,1936.4,7.10242335]
[1772981147472,6.2576322,1937.2,1936.6,7.09860381]
[1772981147874,0.58651077,1937.1,1936.7,7.09860381]
[1772981148172,5.73095639,1937.2,1936.7,7.09860381]
[1772981148363,6.18214101,1937.4,1936.7,7.09860381]
[1772981148568,6.12680745,1937.2,1936.7,7.09860381]
[1772981148971,6.88788756,1937.1,1936.7,7.09860381]
[1772981149373,6.04913574,1937.1,1936.7,7.09860381]
[1772981149574,6.04344798,1937.7,1936.7,7.09860381]
[1772981150078,5.96646374,1937.6,1936.7,7.09860381]
[1772981150372,5.50860434,1937.5,1936.7,7.09860381]
[1772981150677,11.47778568,1937.5,1936.7,7.09860381]
[1772981151080,5.96918134,1937.5,1936.7,7.09860381]
[1772981151272,5.69660208,1937.4,1936.7,7.09860381]
[1772981151776,11.58384723,1937.4,1936.7,7.09860381]
[1772981153573,11.58384723,1937.4,1936.8,7.09860381]
[1772981156669,5.99843347,1937.3,1936.8,7.09860381]
[1772981157079,5.68456861,1937.2,1936.8,7.09860381]
[1772981157475,11.60259593,1937.3,1936.8,7.09860381]
[1772981157671,5.91802732,1937.3,1936.8,7.09860381]
[1772981158075,5.71938103,1937.2,1936.8,7.09860381]
[1772981160480,11.26570717,1937.2,1936.8,7.09860381]
[1772981161480,5.71938103,1937.2,1936.8,7.09860381]
[1772981161683,5.46937912,1937.1,1936.5,7.09860381]
[1772981162086,5.40007987,1936.9,1936.5,7.09860381]
[1772981162683,5.30583623,1936.7,1936.2,6.09645011]
[1772981162982,5.60178145,1937.0,1936.7,6.09645011]
[1772981163183,11.88604734,1937.4,1936.9,6.09645011]
[1772981163479,0.00665118,1937.8,1937.1,6.09645011]
[1772981163784,5.63746308,1937.7,1937.3,6.09645011]
[1772981164090,0.00665118,1937.8,1937.5,6.09645011]
[1772981164285,6.68038856,1938.1,1937.7,6.85335657]
[1772981164693,7.26967135,1938.1,1937.6,22.91535657]
[1772981164980,7.26967135,1938.1,1937.7,6.85335657]
[1772981165181,7.2737507,1938.1,1937.7,6.85335657]
[1772981165690,7.2737507,1938.1,1937.6,22.91535657]
[1772981165883,7.2737507,1938.1,1937.7,6.85335657]
[1772981167188,0.00407935,1938.1,1937.7,6.85335657]
[1772981167886,6.752,1938.8,1937.7,6.85335657]
[1772981168092,6.68038856,1938.7,1937.7,6.85335657]
[1772981168293,5.4221378,1938.4,1937.7,6.85335657]
[1772981168490,6.68038856,1938.5,1937.7,6.85335657]
[1772981168794,5.87752802,1938.4,1937.7,6.85335657]
[1772981169093,6.68038856,1938.3,1937.9,6.85335657]
[1772981172192,6.68676363,1938.4,1937.9,6.85335657]
[1772981172694,6.68676363,1938.4,1938.0,6.85335657]
[1772981173096,6.68676363,1938.4,1937.3,6.85335657]
[1772981173292,6.68038856,1938.2,1937.5,6.85335657]
[1772981173697,6.68038856,1938.0,1937.6,22.55835657]
[1772981173894,6.68038856,1938.0,1937.6,22.56735657]
[1772981177300,6.68038856,1938.0,1937.2,6.85335657]
[1772981177494,6.68038856,1938.0,1937.4,6.85335657]
[1772981178301,6.68038856,1938.3,1937.4,6.85335657]
[1772981178701,12.27745844,1938.3,1937.4,6.85335657]
[1772981178900,6.68038856,1938.2,1937.4,6.85335657]
[1772981179299,6.68038856,1939.0,1937.8,6.85335657]
[1772981179602,6.68038856,1939.0,1938.0,6.85335657]
[1772981180002,6.68038856,1938.8,1938.1,15.748]
[1772981180203,6.68038856,1938.8,1938.1,22.60135657]
[1772981180404,5.59356721,1938.7,1938.2,6.85335657]
[1772981180904,12.27395577,1938.7,1938.2,6.85335657]
[1772981183309,6.68038856,1938.6,1938.2,15.86]
[1772981183510,6.68038856,1938.6,1938.2,14.56708424]
[1772981183700,6.68038856,1938.4,1938.2,14.56708424]
[1772981184712,6.68038856,1938.7,1938.3,6.85335657]
[1772981184902,6.68038856,1938.7,1938.2,14.56708424]
[1772981185107,6.68038856,1938.6,1938.2,21.42044081]
[1772981187410,6.68038856,1938.6,1938.2,14.56708424]
[1772981187614,6.68038856,1938.6,1938.2,21.42044081]
[1772981192014,6.68434567,1938.8,1938.3,6.85335657]
[1772981192216,6.68038856,1939.2,1938.3,6.85335657]
[1772981192520,12.3562178,1939.1,1938.3,6.85335657]
[1772981192914,6.68038856,1939.1,1938.3,6.85335657]
[1772981193216,6.68543826,1939.1,1938.3,6.85335657]
[1772981195020,0.0050497,1939.1,1938.3,6.85335657]
[1772981195518,6.751,1939.7,1938.3,6.85335657]
[1772981195519,7.21432658,1939.4,1938.3,6.85335657]
[1772981196616,7.21895616,1939.4,1938.3,6.85335657]
[1772981197423,0.00462958,1939.4,1938.3,6.85335657]
[1772981199124,0.00462958,1939.4,1938.6,6.66667864]
[1772981199323,0.00462958,1939.4,1938.8,6.66667864]
[1772981203123,7.21895616,1939.4,1939.0,6.66667864]
[1772981205234,7.21432658,1939.2,1938.8,16.131]
[1772981205726,7.21432658,1939.2,1938.8,16.012]
[1772981206126,7.21432658,1939.2,1938.7,6.66667864]
[1772981206326,7.21432658,1939.2,1938.8,16.02]
[1772981206726,7.21432658,1939.2,1938.6,0.00475192]
[1772981206727,7.21432658,1939.0,1938.6,0.00475192]
[1772981206931,7.21432658,1939.0,1938.6,6.67143056]
[1772981207333,7.21432658,1939.3,1938.6,6.67143056]
[1772981208128,0.00462958,1939.4,1938.6,6.67143056]
[1772981208327,7.21432658,1940.0,1938.6,6.67143056]
[1772981208528,7.21432658,1940.0,1938.8,6.66667864]
[1772981208729,7.21432658,1939.9,1938.8,6.66667864]
[1772981209224,7.21432658,1939.7,1938.8,22.72767864]
[1772981209430,7.21432658,1939.7,1938.9,6.66667864]
[1772981209631,7.21432658,1939.5,1938.9,6.66667864]
[1772981210930,7.21432658,1939.3,1938.8,16.081]
[1772981211434,7.21432658,1939.1,1938.8,16.081]
[1772981212135,7.21432658,1939.6,1938.9,6.66667864]
[1772981212433,7.21432658,1939.5,1938.9,6.66667864]
[1772981212837,5.60689709,1939.4,1938.9,6.66667864]
[1772981213031,12.82122367,1939.4,1938.9,6.66667864]
[1772981213233,7.21432658,1939.3,1938.9,6.66667864]
[1772981213634,7.21432658,1939.3,1938.8,16.081]
[1772981214326,7.21432658,1939.3,1938.8,22.74767864]
[1772981216837,7.21432658,1939.3,1938.9,6.66667864]
[1772981217038,7.21432658,1939.3,1938.8,22.74767864]
[1772981217639,7.21432658,1939.3,1938.9,6.66667864]
[1772981223047,6.61953088,1939.6,1938.9,6.66667864]
[1772981223346,6.61953088,1939.8,1938.9,6.66667864]
[1772981223840,6.61953088,1939.7,1938.9,6.66667864]
[1772981225047,6.8687933,1939.9,1938.9,6.66667864]
[1772981227152,0.00594565,1939.9,1938.9,6.66667864]
[1772981227344,6.86284765,1939.7,1938.9,6.66667864]
[1772981237156,6.86284765,1939.5,1938.8,16.238]
[1772981237358,6.86284765,1939.5,1938.8,6.9982707]
[1772981237558,6.86284765,1939.3,1938.7,23.2382707]
[1772981240068,6.86284765,1939.3,1938.6,16.25875192]
[1772981240269,12.34644754,1939.2,1938.7,6.9982707]
[1772981240472,6.86284765,1939.2,1938.7,6.9982707]
[1772981241966,6.86284765,1939.7,1938.7,6.9982707]
[1772981242368,6.86284765,1939.6,1938.7,6.9982707]
[1772981242668,5.3892819,1939.5,1938.7,6.9982707]
[1772981242859,6.86284765,1939.4,1938.7,6.9982707]
[1772981246167,6.86284765,1939.7,1938.7,6.9982707]
[1772981246570,6.86284765,1939.6,1938.7,6.9982707]
[1772981258881,6.8953356,1939.8,1938.7,6.9982707]
[1772981259381,6.8953356,1939.7,1938.7,6.9982707]
[1772981259588,6.8953356,1939.7,1938.9,7.02211174]
[1772981260180,6.8953356,1939.8,1938.9,7.02211174]
[1772981261991,6.90128125,1939.9,1939.2,7.02211174]
[1772981262183,6.90128125,1939.9,1939.4,7.02211174]
[1772981262384,6.8953356,1940.2,1939.4,7.02211174]
[1772981262785,6.8953356,1940.1,1939.4,7.02211174]
[1772981263491,6.90024921,1940.1,1939.4,7.02211174]
[1772981265781,6.90024921,1940.1,1939.2,7.02211174]
[1772981265986,6.90024921,1940.1,1939.3,7.02211174]
[1772981267487,6.8953356,1939.9,1939.3,7.02211174]
[1772981267782,6.8953356,1939.9,1939.1,16.319]
[1772981267984,6.8953356,1939.9,1939.2,7.02211174]
[1772981270591,6.8953356,1940.0,1939.2,7.02211174]
[1772981271690,6.90024921,1940.1,1939.2,7.02211174]
[1772981272092,6.90024921,1940.1,1939.1,18.38565173]
[1772981272093,6.8953356,1940.2,1939.5,7.02211174]
[1772981272286,6.8953356,1940.2,1939.7,7.02211174]
[1772981273285,6.90158206,1940.2,1939.4,7.02211174]
[1772981276391,5.93020849,1940.1,1939.1,7.02211174]
[1772981276588,6.8953356,1940.0,1939.3,7.02211174]
[1772981277594,6.8953356,1940.0,1939.5,7.02211174]
[1772981278695,6.8953356,1940.1,1939.7,7.02211174]
[1772981279395,6.90158206,1940.2,1939.7,7.02211174]
[1772981281091,0.00624646,1940.2,1939.7,7.02211174]
[1772981281392,0.00624646,1940.2,1939.8,7.02211174]
[1772981281586,6.8953356,1940.3,1939.9,7.02211174]
[1772981281988,6.8953356,1940.8,1940.0,9.08814906]
[1772981282293,6.8953356,1940.6,1940.0,9.08814906]
[1772981282483,6.90123038,1940.6,1940.1,7.02211174]
[1772981282687,6.90123038,1940.6,1940.0,8.2902538]
[1772981282891,6.90123038,1940.6,1940.1,6.22046162]
[1772981283889,6.90123038,1940.6,1940.0,0.00375486]
[1772981284093,6.89758953,1940.3,1939.6,16.279]
[1772981284596,6.89758953,1940.1,1939.6,23.15669278]
[1772981285096,6.89758953,1940.1,1939.7,6.87769278]
[1772981288297,0.00589478,1940.6,1939.7,6.87769278]
[1772981288298,6.89758953,1940.3,1939.7,6.87769278]
[1772981291701,6.89758953,1940.5,1939.7,6.87769278]
[1772981292197,6.89758953,1940.4,1939.7,6.87769278]
[1772981293904,6.89758953,1940.4,1939.8,16.323]
[1772981294302,6.89758953,1940.4,1939.8,23.20069278]
[1772981300608,6.89758953,1940.4,1939.9,6.87769278]
[1772981308713,6.89758953,1940.4,1939.8,16.384]
[1772981309016,6.89758953,1940.4,1939.8,23.26169278]
[1772981309215,6.89758953,1940.4,1939.9,6.87769278]
[1772981311813,6.90348431,1940.6,1940.1,6.87769278]
[1772981313010,6.06630209,1940.6,1940.1,6.87769278]
[1772981314014,6.70215762,1940.6,1940.1,6.87769278]
[1772981314921,0.00528398,1940.6,1940.3,6.499924]
[1772981315320,13.44787364,1940.9,1940.3,6.499924]
[1772981315520,6.69687364,1940.8,1940.3,6.499924]
[1772981315722,12.63893104,1940.8,1940.3,6.499924]
[1772981316221,0.00388048,1940.8,1940.3,6.499924]
[1772981317716,6.69687364,1940.6,1939.9,22.913924]
[1772981317917,6.69687364,1940.6,1940.0,6.499924]
[1772981321126,6.70075412,1940.8,1940.2,6.499924]
[1772981321529,6.69687364,1940.6,1940.0,6.499924]
[1772981325627,6.70075412,1940.8,1940.0,6.499924]
[1772981327931,5.72526451,1940.7,1940.0,6.499924]
[1772981328236,6.69687364,1940.6,1940.0,6.499924]
[1772981328534,6.69687364,1940.6,1940.0,22.952924]
[1772981329336,6.69687364,1940.6,1940.1,6.499924]
[1772981330637,6.69687364,1940.6,1940.0,22.952924]
[1772981331728,5.62759841,1940.5,1940.0,16.453]
[1772981331928,6.69687364,1940.4,1940.0,22.952924]
[1772981332131,6.69687364,1940.4,1940.1,6.499924]
[1772981333841,6.69687364,1940.6,1940.1,6.499924]
[1772981334245,12.12423923,1940.6,1940.1,6.499924]
[1772981334538,6.69687364,1940.5,1940.1,6.499924]
[1772981338243,6.69687364,1940.5,1939.9,6.499924]
[1772981338443,6.69687364,1940.5,1940.1,6.499924]
[1772981340952,6.69687364,1940.5,1940.0,16.49]
[1772981341745,6.69687364,1939.9,1939.0,6.499924]
[1772981342051,2.03016534,1939.6,1938.7,6.499924]
[1772981342251,2.03016534,1939.6,1938.8,6.499924]
[1772981342451,2.06528138,1939.7,1938.8,6.499924]
[1772981342452,6.69687364,1939.4,1938.8,6.499924]
[1772981342753,6.70155255,1939.4,1938.8,6.50524128]
[1772981345152,7.41359935,1940.3,1938.9,7.65372557]
[1772981345354,7.41359935,1940.1,1938.9,7.65372557]
[1772981345657,7.41359935,1939.7,1938.9,7.65372557]